bitfinex-derivatives/quotes_BTCF0:USTF0_20241021
["timestamp","ask_amount","ask_price","bid_price","bid_amount"]
[1729494737320,0.3628,68782.0,68781.0,0.078712]
[1729494745633,0.3628,68782.0,68781.0,0.070712]
[1729494747125,0.3628,68782.0,68772.0,0.15390446]
[1729494747126,0.3628,68782.0,68772.0,0.05674446]
[1729494748134,0.3618,68782.0,68772.0,0.05674446]
[1729494748336,0.3628,68782.0,68777.0,0.072716]
[1729494748538,0.3618,68782.0,68772.0,0.06174446]
[1729494748728,0.3628,68782.0,68772.0,0.06274446]
[1729494749344,0.3628,68782.0,68780.0,0.072713]
[1729494750539,0.3628,68782.0,68772.0,0.06274446]
[1729494750540,0.3628,68782.0,68772.0,0.05774446]
[1729494750833,0.3628,68782.0,68780.0,0.072712]
[1729494752134,0.001,68782.0,68781.0,0.072712]
[1729494752338,0.00218097,68796.0,68795.0,0.072697]
[1729494753537,0.00618097,68796.0,68795.0,0.072697]
[1729494754336,0.01018097,68796.0,68795.0,0.072697]
[1729494756245,0.0175009,68796.0,68776.0,0.3608]
[1729494756538,0.3608,68783.0,68776.0,0.072717]
[1729494756735,0.3608,68783.0,68780.0,0.072712]
[1729494757633,0.43351,68783.0,68775.0,0.105818]
[1729494757937,0.43351,68783.0,68778.0,0.072715]
[1729494758536,0.43451,68783.0,68780.0,0.001]
[1729494759133,0.43551,68783.0,68780.0,0.001]
[1729494759841,0.43451,68783.0,68780.0,0.001]
[1729494760043,0.43551,68783.0,68780.0,0.001]
[1729494760335,0.43451,68783.0,68779.0,0.072714]
[1729494760540,0.43551,68783.0,68779.0,0.072714]
[1729494760741,0.43551,68783.0,68779.0,0.064714]
[1729494761744,0.43551,68783.0,68780.0,0.001]
[1729494762343,0.43551,68783.0,68779.0,0.064714]
[1729494762533,0.43551,68783.0,68780.0,0.072713]
[1729494763444,0.43551,68783.0,68775.0,0.0331]
[1729494764245,0.3618,68783.0,68775.0,0.0331]
[1729494764447,0.3628,68783.0,68780.0,0.072713]
[1729494764748,0.3628,68783.0,68775.0,0.0331]
[1729494765047,0.3628,68783.0,68780.0,0.072713]
[1729494765236,0.3628,68783.0,68766.0,0.04573782]
[1729494765237,0.3628,68783.0,68766.0,0.00218096]
[1729494765437,0.435511,68783.0,68777.0,0.072716]
[1729494765637,0.435511,68783.0,68778.0,0.072715]
[1729494766049,0.435511,68783.0,68770.0,0.38704251]
[1729494766437,0.434511,68783.0,68770.0,0.38704251]
[1729494766634,0.434511,68783.0,68767.0,0.0306]
[1729494766635,0.3608,68776.0,68767.0,0.0306]
[1729494766840,0.3608,68776.0,68772.0,0.072722]
[1729494766841,0.433517,68776.0,68772.0,0.072722]
[1729494767042,0.0612,68775.0,68772.0,0.032722]
[1729494767436,0.0612,68775.0,68766.0,0.03368096]
[1729494767640,0.0612,68775.0,68771.0,0.072723]
[1729494767843,0.0612,68775.0,68772.0,0.032721]
[1729494768249,0.0612,68775.0,68766.0,0.05993657]
[1729494768446,0.0612,68775.0,68772.0,0.072721]
[1729494768659,0.0612,68775.0,68772.0,0.032721]
[1729494768849,0.0612,68775.0,68766.0,0.05993657]
[1729494769042,0.0612,68775.0,68767.0,0.072727]
[1729494769350,0.0612,68775.0,68766.0,0.05993657]
[1729494769351,0.0622,68775.0,68766.0,0.05993657]
[1729494769552,0.0622,68775.0,68773.0,0.07272]
[1729494769857,0.0632,68775.0,68773.0,0.07272]
[1729494770249,0.001,68775.0,68774.0,0.07272]
[1729494770546,0.002,68775.0,68774.0,0.07272]
[1729494771843,0.001,68775.0,68774.0,0.07272]
[1729494772143,0.002,68775.0,68774.0,0.07272]
[1729494775256,0.002,68775.0,68774.0,0.0982843]
[1729494776251,0.002,68775.0,68774.0,0.0902843]
[1729494776653,0.002,68775.0,68774.0,0.06472]
[1729494777358,0.002,68775.0,68769.0,0.3608]
[1729494777558,0.002,68775.0,68769.0,0.38695644]
[1729494778553,0.002,68775.0,68774.0,0.07272]
[1729494779757,0.001,68775.0,68774.0,0.07272]
[1729494780053,0.002,68775.0,68774.0,0.07272]
[1729494791372,0.002,68775.0,68774.0,0.06472]
[1729494796967,0.002,68775.0,68774.0,0.50092]
[1729494803669,0.002,68775.0,68774.0,0.59804]
[1729494803972,0.3608,68790.0,68789.0,0.072704]
[1729494805563,0.3728,68790.0,68789.0,0.072704]
[1729494806479,0.3678,68790.0,68789.0,0.072704]
[1729494806978,0.3678,68790.0,68789.0,0.064704]
[1729494807181,0.3678,68790.0,68781.0,0.072712]
[1729494807480,0.3608,68783.0,68781.0,0.072712]
[1729494807667,0.0607,68782.0,68781.0,0.072712]
[1729494808876,0.0617,68782.0,68781.0,0.074712]
[1729494810280,0.0617,68782.0,68770.0,0.3608]
[1729494810480,0.3608,68776.0,68770.0,0.3608]
[1729494810780,0.0308,68775.0,68770.0,0.3608]
[1729494811477,0.0308,68775.0,68772.0,0.072722]
[1729494812079,0.0318,68775.0,68772.0,0.072722]
[1729494812683,0.0328,68775.0,68772.0,0.073722]
[1729494814679,0.0328,68775.0,68773.0,0.072721]
[1729494814880,0.002,68775.0,68774.0,0.07272]
[1729494816484,0.001,68775.0,68774.0,0.07272]
[1729494816683,0.002,68775.0,68774.0,0.07272]
[1729494817083,0.002,68775.0,68774.0,0.16976]
[1729494819390,0.002,68775.0,68774.0,0.20296]
[1729494822306,0.002,68775.0,68774.0,0.19496]
[1729494823501,0.002,68775.0,68774.0,0.63116]
[1729494823788,0.3608,68783.0,68782.0,0.072711]
[1729494824494,0.3608,68790.0,68782.0,0.072711]
[1729494824691,0.3608,68790.0,68789.0,0.072704]
[1729494825696,0.3668,68790.0,68789.0,0.072704]
[1729494825997,0.3728,68790.0,68789.0,0.072704]
[1729494826894,0.3678,68790.0,68789.0,0.072704]
[1729494827783,0.3618,68790.0,68789.0,0.072704]
[1729494829390,0.3618,68790.0,68789.0,0.169744]
[1729494830803,0.3618,68790.0,68789.0,0.19635449]
[1729494831590,0.3618,68790.0,68789.0,0.072704]
[1729494831893,0.79792,68790.0,68775.0,0.09704]
[1729494832100,0.3608,68781.0,68780.0,0.072713]
[1729494832807,0.3608,68781.0,68776.0,0.072717]
[1729494832988,0.0324,68780.0,68776.0,0.072717]
[1729494833185,0.0631,68780.0,68776.0,0.072717]
[1729494833789,0.0631,68780.0,68777.0,0.072716]
[1729494836101,0.0631,68780.0,68777.0,0.073716]
[1729494837605,0.0631,68780.0,68777.0,0.065716]
[1729494839194,0.3608,68779.0,68777.0,0.065716]
[1729494840609,0.3608,68779.0,68778.0,0.072715]
[1729494840995,0.0631,68780.0,68778.0,0.072715]
[1729494841310,0.36176,68787.0,68786.0,0.072707]
[1729494841507,0.3608,68787.0,68786.0,0.072707]
[1729494843312,0.3608,68787.0,68786.0,0.073707]
[1729494850915,0.3608,68787.0,68786.0,0.072707]
[1729494851100,0.3618,68787.0,68786.0,0.072707]
[1729494852917,0.3618,68787.0,68786.0,0.064707]
[1729494858621,0.434506,68787.0,68786.0,0.064707]
[1729494860711,0.3618,68787.0,68786.0,0.064707]
[1729494864222,0.3608,68787.0,68786.0,0.065707]
[1729494867823,0.79692,68787.0,68775.0,0.00076]
[1729494868034,0.79692,68787.0,68767.0,0.40435686]
[1729494868035,0.3608,68776.0,68773.0,0.02572687]
[1729494868325,0.3608,68776.0,68773.0,0.069721]
[1729494868931,0.3608,68776.0,68775.0,0.001]
[1729494869430,0.3608,68776.0,68775.0,0.073719]
[1729494869729,0.3628,68776.0,68775.0,0.072719]
[1729494871335,0.3618,68776.0,68775.0,0.072719]
[1729494871638,0.3628,68776.0,68775.0,0.072719]
[1729494873427,0.072719,68775.0,68771.0,0.072722]
[1729494873620,0.072722,68772.0,68767.0,0.3608]
[1729494873824,0.072722,68772.0,68767.0,0.38749541]
[1729494874238,0.072722,68772.0,68767.0,0.3608]
[1729494874628,0.072722,68772.0,68767.0,0.433527]
[1729494875125,0.3618,68776.0,68769.0,0.072725]
[1729494875326,0.001,68775.0,68769.0,0.072725]
[1729494875830,0.001,68772.0,68769.0,0.072725]
[1729494876034,0.002,68772.0,68769.0,0.072725]
[1729494876331,0.002,68772.0,68767.0,0.3608]
[1729494876528,0.002,68772.0,68771.0,0.072723]
[1729494876926,0.001,68772.0,68771.0,0.072723]
[1729494878536,0.002,68772.0,68771.0,0.072723]
[1729494880934,0.002,68772.0,68771.0,0.09894993]
[1729494883641,0.002,68772.0,68771.0,0.09094993]
[1729494886540,0.002,68772.0,68771.0,0.18786993]
[1729494892740,0.3608,68787.0,68786.0,0.072707]
[1729494893833,0.3658,68787.0,68786.0,0.072707]
[1729494895243,0.3708,68787.0,68786.0,0.072707]
[1729494897349,0.3708,68787.0,68786.0,0.09942752]
[1729494898037,0.3708,68787.0,68786.0,0.02672052]
[1729494898236,0.3708,68787.0,68785.0,0.09692]
[1729494899039,0.3708,68787.0,68785.0,0.08892]
[1729494900553,0.3658,68787.0,68785.0,0.11480485]
[1729494900854,0.3658,68787.0,68782.0,0.09692]
[1729494900855,0.07271,68783.0,68782.0,0.09692]
[1729494901155,0.07271,68783.0,68781.0,0.02643759]
[1729494901344,0.0307,68782.0,68779.0,0.09692]
[1729494901545,0.3608,68780.0,68779.0,0.09692]
[1729494902844,0.433513,68780.0,68779.0,0.001]
[1729494904455,0.433513,68780.0,68779.0,0.002]
[1729494905247,0.072718,68776.0,68773.0,0.3608]
[1729494905560,0.072719,68775.0,68773.0,0.3608]
[1729494906350,0.072719,68775.0,68773.0,0.3618]
[1729494906554,0.3608,68774.0,68773.0,0.001]
[1729494906855,0.3608,68774.0,68770.0,0.09855907]
[1729494907042,0.3608,68774.0,68773.0,0.001]
[1729494908154,0.3618,68774.0,68773.0,0.001]
[1729494908660,0.3618,68774.0,68771.0,0.072723]
[1729494908958,0.3628,68774.0,68771.0,0.072723]
[1729494909253,0.3618,68774.0,68769.0,0.072725]
[1729494909455,0.3628,68774.0,68769.0,0.09957041]
[1729494909854,0.3618,68774.0,68769.0,0.09957041]
[1729494910055,0.3628,68774.0,68769.0,0.09957041]
[1729494911663,0.001,68774.0,68769.0,0.09957041]
[1729494911957,0.002,68774.0,68769.0,0.09957041]
[1729494912265,0.002,68774.0,68770.0,0.072723]
[1729494912457,0.002,68774.0,68769.0,0.12372541]
[1729494912758,0.002,68774.0,68773.0,0.433521]
[1729494913261,0.0307,68782.0,68773.0,0.3608]
[1729494913457,0.0307,68782.0,68779.0,0.072714]
[1729494913760,0.0307,68782.0,68773.0,0.3608]
[1729494914056,0.0307,68782.0,68781.0,0.072712]
[1729494914258,0.02664213,68789.0,68781.0,0.072712]
[1729494914563,0.05684213,68789.0,68781.0,0.064712]
[1729494915663,0.3628,68787.0,68781.0,0.064712]
[1729494916150,0.3628,68787.0,68779.0,0.09688]
[1729494916352,0.3628,68787.0,68782.0,0.072711]
[1729494916556,0.3628,68787.0,68779.0,0.09688]
[1729494916759,0.3628,68787.0,68786.0,0.072707]
[1729494917561,0.3658,68787.0,68786.0,0.072707]
[1729494918749,0.3638,68787.0,68786.0,0.072707]
[1729494918951,0.3648,68787.0,68786.0,0.072707]
[1729494919256,0.3618,68787.0,68786.0,0.072707]
[1729494919456,0.3628,68787.0,68786.0,0.072707]
[1729494920257,0.3608,68787.0,68786.0,0.072707]
[1729494920463,0.3618,68787.0,68786.0,0.072707]
[1729494922259,0.001,68787.0,68786.0,0.508827]
[1729494923065,0.001,68787.0,68786.0,0.072707]
[1729494923261,0.001,68787.0,68781.0,0.072712]
[1729494924363,0.001,68787.0,68783.0,0.07271]
[1729494924662,0.001,68787.0,68786.0,0.072707]
[1729494925459,0.003,68787.0,68786.0,0.072707]
[1729494926058,0.001,68787.0,68786.0,0.072707]
[1729494926278,0.0311,68793.0,68791.0,0.072701]
[1729494926566,0.0311,68793.0,68792.0,0.072701]
[1729494926962,0.3608,68794.0,68780.0,0.19557963]
[1729494927169,0.3608,68794.0,68793.0,0.072699]
[1729494927559,0.3608,68794.0,68793.0,0.169579]
[1729494928469,0.3668,68794.0,68793.0,0.169579]
[1729494929670,0.3728,68794.0,68793.0,0.169579]
[1729494929869,0.3728,68794.0,68793.0,0.167579]
[1729494930257,0.3668,68794.0,68793.0,0.167579]
[1729494930464,0.012,68794.0,68793.0,0.167579]
[1729494930958,0.3608,68804.0,68800.0,0.072692]
[1729494931567,0.3608,68804.0,68803.0,0.072689]
[1729494931766,0.3608,68804.0,68803.0,0.169569]
[1729494933260,0.3608,68808.0,68807.0,0.072685]
[1729494934173,0.3608,68808.0,68805.0,0.09684]
[1729494934371,0.3658,68808.0,68807.0,0.001]
[1729494936075,0.3708,68808.0,68807.0,0.002]
[1729494937262,0.3708,68808.0,68799.0,0.02579643]
[1729494937263,0.8068,68808.0,68799.0,0.072693]
[1729494937467,0.3608,68801.0,68799.0,0.072693]
[1729494937673,0.0629,68800.0,68799.0,0.072693]
[1729494939074,0.0629,68800.0,68799.0,0.073693]
[1729494940174,0.0629,68800.0,68794.0,0.09899999]
[1729494940374,0.0749,68800.0,68795.0,0.0968]
[1729494940678,0.0749,68800.0,68790.0,0.072703]
[1729494940868,0.0749,68800.0,68790.0,0.169503]
[1729494940869,0.072697,68796.0,68790.0,0.169503]
[1729494941175,0.0326,68795.0,68790.0,0.169503]
[1729494942078,0.0326,68795.0,68790.0,0.072703]
[1729494942272,0.3608,68794.0,68790.0,0.072703]
[1729494942977,0.3608,68794.0,68791.0,0.072702]
[1729494943865,0.3668,68794.0,68791.0,0.072702]
[1729494944280,0.3728,68794.0,68791.0,0.072702]
[1729494945367,0.3728,68794.0,68791.0,0.06688228]
[1729494947186,0.072702,68791.0,68786.0,0.072706]
[1729494947371,0.3608,68787.0,68777.0,0.3608]
[1729494947565,0.3608,68787.0,68772.0,0.00218073]
[1729494947566,0.433515,68779.0,68772.0,0.00218073]
[1729494948074,0.433515,68779.0,68774.0,0.072719]
[1729494948075,0.3608,68779.0,68774.0,0.072719]
[1729494949981,0.3618,68779.0,68774.0,0.005]
[1729494950185,0.3628,68779.0,68776.0,0.072716]
[1729494951371,0.3628,68779.0,68774.0,0.009]
[1729494951585,0.3628,68779.0,68778.0,0.072715]
[1729494952676,0.3618,68779.0,68778.0,0.072715]
[1729494952876,0.3628,68779.0,68778.0,0.077715]
[1729494953282,0.3628,68779.0,68778.0,0.081715]
[1729494956776,0.3628,68779.0,68778.0,0.178555]
[1729494956978,0.3628,68779.0,68778.0,0.081715]
[1729494957287,0.3628,68779.0,68778.0,0.178555]
[1729494959882,0.002,68779.0,68778.0,0.20492612]
[1729494960678,0.002,68779.0,68778.0,0.19692612]
[1729494963392,0.002,68779.0,68778.0,0.009]
[1729494963897,0.0336,68779.0,68778.0,0.009]
[1729494972700,0.0336,68779.0,68778.0,0.081715]
[1729494973498,0.0336,68779.0,68778.0,0.009]
[1729494974405,0.106314,68779.0,68773.0,0.072721]
[1729494974599,0.3608,68774.0,68773.0,0.072721]
[1729494975393,0.3608,68774.0,68772.0,0.00218073]
[1729494975909,0.3618,68774.0,68773.0,0.011]
[1729494976098,0.3618,68774.0,68773.0,0.003]
[1729494976099,0.43452,68774.0,68773.0,0.003]
[1729494976402,0.43352,68774.0,68772.0,0.00218073]
[1729494976611,0.43452,68774.0,68772.0,0.01318073]
[1729494977106,0.3618,68774.0,68773.0,0.011]
[1729494977303,0.3618,68774.0,68773.0,0.018]
[1729494978000,0.3628,68774.0,68773.0,0.011]
[1729494978399,0.002,68774.0,68773.0,0.083721]
[1729494978601,0.001,68774.0,68773.0,0.072721]
[1729494978813,0.001,68774.0,68773.0,0.075721]
[1729494978814,0.002,68774.0,68773.0,0.075721]
[1729494991037,0.3608,68794.0,68773.0,0.075721]
[1729494991339,0.433499,68794.0,68778.0,0.3608]
[1729494991533,0.02786544,68793.0,68784.0,0.064708]
[1729494992137,0.10056544,68793.0,68784.0,0.064708]
[1729494992328,0.3628,68788.0,68784.0,0.064708]
[1729494993235,0.3628,68788.0,68779.0,0.0968]
[1729494993236,0.3648,68788.0,68779.0,0.0968]
[1729494993438,0.3648,68788.0,68786.0,0.072707]
[1729494994737,0.3628,68788.0,68786.0,0.072707]
[1729494994937,0.3648,68788.0,68786.0,0.072707]
[1729494998042,0.072711,68783.0,68777.0,0.072716]
[1729494998242,0.3608,68779.0,68775.0,0.09672]
[1729494998444,0.3608,68779.0,68776.0,0.072717]
[1729494999643,0.3618,68779.0,68776.0,0.072717]
[1729494999836,0.3618,68779.0,68777.0,0.003]
[1729495000444,0.3618,68779.0,68776.0,0.072717]
[1729495000648,0.3628,68779.0,68776.0,0.007]
[1729495000840,0.3618,68779.0,68778.0,0.072715]
[1729495001043,0.3628,68779.0,68778.0,0.072715]
[1729495001443,0.002,68779.0,68778.0,0.072715]
[1729495003347,0.001,68779.0,68778.0,0.072715]
[1729495003555,0.002,68779.0,68778.0,0.079715]
[1729495004440,0.002,68779.0,68778.0,0.176435]
[1729495006753,0.002,68779.0,68778.0,0.168435]
[1729495007051,0.002,68779.0,68778.0,0.19528951]
[1729495013847,0.002,68779.0,68778.0,0.55608951]
[1729495018659,0.002,68779.0,68778.0,0.09856951]
[1729495018847,0.074714,68779.0,68778.0,0.007]
[1729495019249,0.002,68779.0,68778.0,0.007]
[1729495019861,0.002,68779.0,68778.0,0.079715]
[1729495020962,0.002,68779.0,68778.0,0.176435]
[1729495022258,0.002,68779.0,68778.0,0.168435]
[1729495022854,0.002,68779.0,68778.0,0.071715]
[1729495023049,0.002,68779.0,68778.0,0.168435]
[1729495023258,0.002,68779.0,68778.0,0.071715]
[1729495025466,0.002,68779.0,68778.0,0.102215]
[1729495028979,0.002,68779.0,68778.0,0.168555]
[1729495037679,0.002,68779.0,68778.0,0.160555]
[1729495038975,0.34556279,68779.0,68778.0,0.09684]
[1729495039368,0.34556279,68779.0,68778.0,0.169555]
[1729495041976,0.07673008,68779.0,68778.0,0.169555]
[1729495042186,0.002,68779.0,68778.0,0.169555]
[1729495043276,0.002,68779.0,68778.0,0.19545476]
[1729495045282,0.002,68779.0,68778.0,0.19695858]
[1729495046280,0.002,68779.0,68778.0,0.19732522]
[1729495052983,0.002,68779.0,68778.0,0.18932522]
[1729495054791,0.3608,68784.0,68783.0,0.072717]
[1729495055384,0.3608,68784.0,68783.0,0.07458746]
[1729495056188,0.3608,68784.0,68783.0,0.07558746]
[1729495061786,0.3608,68790.0,68784.0,0.072716]
[1729495061994,0.3608,68790.0,68789.0,0.072711]
[1729495062194,0.3608,68790.0,68789.0,0.170831]
[1729495062394,0.3608,68790.0,68789.0,0.17270146]
[1729495062993,0.3658,68790.0,68789.0,0.17270146]
[1729495063398,0.3698,68790.0,68789.0,0.17270146]
[1729495063999,0.3698,68790.0,68789.0,0.07458146]
[1729495064293,0.3698,68790.0,68779.0,0.00084]
[1729495064294,0.44251,68790.0,68779.0,0.00084]
[1729495064499,0.26268,68780.0,68778.0,0.02589976]
[1729495064801,0.033,68779.0,68776.0,0.072725]
[1729495065495,0.033,68779.0,68777.0,0.072724]
[1729495066596,0.033,68779.0,68774.0,0.09812]
[1729495066800,0.033,68779.0,68777.0,0.001]
[1729495066801,0.034,68779.0,68777.0,0.001]
[1729495067001,0.072725,68776.0,68767.0,0.09812]
[1729495067298,0.3608,68768.0,68767.0,0.09812]
[1729495067797,0.3608,68768.0,68762.0,0.00076]
[1729495068000,0.072734,68767.0,68761.0,0.00218095]
[1729495068294,0.43354,68762.0,68751.0,0.072751]
[1729495068503,0.3608,68755.0,68751.0,0.064751]
[1729495068699,0.064,68754.0,68751.0,0.064751]
[1729495069898,0.064,68754.0,68751.0,0.065751]
[1729495069899,0.065,68754.0,68751.0,0.065751]
[1729495072102,0.066,68754.0,68751.0,0.065751]
[1729495073097,0.066,68754.0,68751.0,0.001]
[1729495075900,0.065,68754.0,68750.0,0.072752]
[1729495076101,0.065,68754.0,68737.0,0.00218178]
[1729495076102,0.3608,68751.0,68737.0,0.00218178]
[1729495076394,0.3608,68740.0,68737.0,0.00218178]
[1729495076594,0.3608,68740.0,68737.0,0.02843143]
[1729495076804,0.3608,68740.0,68737.0,0.00218178]
[1729495077504,0.3608,68740.0,68739.0,0.072764]
[1729495078191,0.3618,68740.0,68739.0,0.072764]
[1729495079088,0.3628,68740.0,68739.0,0.072764]
[1729495079489,0.3618,68740.0,68739.0,0.072764]
[1729495080801,0.001,68740.0,68739.0,0.072764]
[1729495081602,0.3608,68743.0,68742.0,0.072761]
[1729495082696,0.3628,68743.0,68742.0,0.072761]
[1729495083307,0.3628,68743.0,68737.0,0.07494778]
[1729495083599,0.3628,68743.0,68734.0,0.072768]
[1729495083600,0.3918,68742.0,68734.0,0.072768]
[1729495083794,0.3608,68735.0,68734.0,0.064768]
[1729495085212,0.3608,68735.0,68734.0,0.0659165]
[1729495085707,0.3618,68735.0,68734.0,0.0659165]
[1729495086308,0.3628,68735.0,68734.0,0.0659165]
[1729495092602,0.3628,68735.0,68734.0,0.06649092]
[1729495095211,0.002,68735.0,68734.0,0.06649092]
[1729495095709,0.002,68735.0,68734.0,0.06676374]
[1729495096713,0.3608,68742.0,68734.0,0.06676374]
[1729495097018,0.3608,68742.0,68741.0,0.072762]
[1729495097207,0.3608,68742.0,68741.0,0.172482]
[1729495097816,0.3608,68742.0,68741.0,0.17447774]
[1729495098016,0.3618,68742.0,68741.0,0.17447774]
[1729495098903,0.3628,68742.0,68741.0,0.17447774]
[1729495099301,0.3628,68742.0,68741.0,0.16647774]
[1729495099505,0.3628,68742.0,68741.0,0.21012402]
[1729495099908,0.3628,68742.0,68741.0,0.06675774]
[1729495100310,0.3628,68742.0,68741.0,0.00199574]
[1729495104019,0.3628,68742.0,68737.0,0.04364628]
[1729495104318,0.3628,68742.0,68737.0,0.02569294]
[1729495104516,0.3628,68742.0,68735.0,0.04364628]
[1729495104706,0.3608,68736.0,68735.0,0.04364628]
[1729495105317,0.3608,68736.0,68734.0,0.072769]
[1729495106112,0.3618,68736.0,68735.0,0.1173939]
[1729495106609,0.3618,68736.0,68735.0,0.073768]
[1729495106808,0.3618,68736.0,68735.0,0.1173939]
[1729495107008,0.3628,68736.0,68735.0,0.1183939]
[1729495107416,0.3628,68736.0,68735.0,0.074768]
[1729495107612,0.3618,68736.0,68735.0,0.073768]
[1729495107816,0.3628,68736.0,68735.0,0.073768]
[1729495108824,0.3618,68736.0,68735.0,0.073768]
[1729495109031,0.3628,68736.0,68735.0,0.074768]
[1729495114728,0.3628,68736.0,68735.0,0.066768]
[1729495127333,0.3628,68736.0,68735.0,0.002]
[1729495127522,0.3628,68736.0,68732.0,0.02573722]
[1729495127523,0.07277,68733.0,68732.0,0.02573722]
[1729495127730,0.07277,68733.0,68725.0,0.072779]
[1729495127920,0.3608,68726.0,68721.0,0.00218271]
[1729495128121,0.072779,68725.0,68721.0,0.02818102]
[1729495128320,0.104379,68725.0,68721.0,0.02818102]
[1729495128530,0.0316,68725.0,68721.0,0.00218271]
[1729495128830,0.3608,68726.0,68721.0,0.00218271]
[1729495129035,0.3608,68726.0,68724.0,0.07278]
[1729495129222,0.3608,68726.0,68725.0,0.072779]
[1729495130034,0.3608,68726.0,68725.0,0.064779]
[1729495130231,0.3618,68726.0,68725.0,0.064779]
[1729495130430,0.3628,68726.0,68725.0,0.064779]
[1729495144032,0.002,68726.0,68725.0,0.064779]
[1729495145336,0.002,68726.0,68725.0,0.056779]
[1729495145941,0.3608,68738.0,68737.0,0.072766]
[1729495147654,0.3608,68738.0,68737.0,0.105066]
[1729495147847,0.003,68738.0,68737.0,0.105066]
[1729495148247,0.006,68738.0,68737.0,0.105066]
[1729495148745,0.71118594,68753.0,68749.0,0.072753]
[1729495148949,0.36164,68753.0,68749.0,0.170073]
[1729495149139,0.3608,68753.0,68749.0,0.170073]
[1729495150344,0.00918271,68750.0,68749.0,0.170073]
[1729495150650,0.36176,68761.0,68752.0,0.07275]
[1729495150844,0.3608,68767.0,68766.0,0.072735]
[1729495153148,0.3608,68767.0,68766.0,0.076735]
[1729495153347,0.3608,68767.0,68766.0,0.081735]
[1729495153946,0.3618,68767.0,68766.0,0.082735]
[1729495154451,0.3618,68767.0,68766.0,0.083735]
[1729495159252,0.001,68767.0,68766.0,0.083735]
[1729495160749,0.001,68767.0,68766.0,0.075735]
[1729495163654,0.001,68767.0,68766.0,0.011]
[1729495168556,0.001,68767.0,68766.0,0.083735]
[1729495174873,0.001,68767.0,68766.0,0.444535]
[1729495175073,0.3608,68777.0,68766.0,0.880775]
[1729495175274,0.3608,68777.0,68776.0,0.072725]
[1729495176182,0.3608,68777.0,68776.0,0.066725]
[1729495176775,0.3648,68777.0,68776.0,0.066725]
[1729495177175,0.3698,68777.0,68776.0,0.066725]
[1729495177775,0.3648,68777.0,68776.0,0.066725]
[1729495177978,0.3698,68777.0,68776.0,0.067725]
[1729495179585,0.3698,68777.0,68776.0,0.09419545]
[1729495181373,0.3698,68777.0,68776.0,0.53039545]
[1729495181581,0.009,68777.0,68776.0,0.53039545]
[1729495182187,0.00218167,68783.0,68782.0,0.072718]
[1729495183187,0.00218167,68783.0,68782.0,0.169478]
[1729495183789,0.00218167,68783.0,68782.0,0.173478]
[1729495184184,0.3608,68791.0,68786.0,0.072714]
[1729495184575,0.3608,68791.0,68787.0,0.072713]
[1729495185490,0.3608,68790.0,68788.0,0.072712]
[1729495185691,0.3608,68790.0,68789.0,0.072711]
[1729495186683,0.3638,68790.0,68789.0,0.072711]
[1729495188383,0.3668,68790.0,68789.0,0.072711]
[1729495188787,0.3668,68790.0,68789.0,0.09875495]
[1729495191584,0.3668,68790.0,68789.0,0.09075495]
[1729495193091,0.7276,68790.0,68789.0,0.09075495]
[1729495198600,0.7276,68790.0,68789.0,0.064711]
[1729495202093,0.80031,68790.0,68789.0,0.064711]
[1729495202698,0.7276,68790.0,68785.0,0.02620065]
[1729495202891,0.7276,68790.0,68785.0,0.072715]
[1729495202892,0.072714,68786.0,68785.0,0.072715]
[1729495204401,0.072714,68786.0,68785.0,0.073715]
[1729495204906,0.072714,68786.0,68779.0,0.072721]
[1729495204907,0.072718,68783.0,68779.0,0.072721]
[1729495205093,0.3608,68780.0,68774.0,0.072726]
[1729495205293,0.072724,68777.0,68774.0,0.072726]
[1729495205504,0.072724,68777.0,68773.0,0.00218059]
[1729495205798,0.3608,68774.0,68773.0,0.00218059]
[1729495206009,0.3608,68780.0,68773.0,0.00218059]
[1729495206191,0.3608,68780.0,68773.0,0.09894059]
[1729495206396,0.3608,68780.0,68779.0,0.001]
[1729495206599,0.3608,68780.0,68779.0,0.003]
[1729495207099,0.3608,68780.0,68773.0,0.09394059]
[1729495207307,0.3678,68780.0,68776.0,0.072724]
[1729495207813,0.3678,68780.0,68777.0,0.072723]
[1729495209411,0.3648,68780.0,68773.0,0.09676]
[1729495209605,0.3638,68780.0,68779.0,0.072722]
[1729495211711,0.3618,68780.0,68779.0,0.072722]
[1729495211900,0.3618,68780.0,68779.0,0.073722]
[1729495212207,0.3608,68780.0,68779.0,0.075722]
[1729495213100,0.3608,68780.0,68779.0,0.10155244]
[1729495216203,0.3608,68780.0,68779.0,0.003]
[1729495218012,0.3618,68780.0,68779.0,0.002]
[1729495218214,0.3618,68780.0,68773.0,0.169407]
[1729495218414,0.3608,68774.0,68773.0,0.169407]
[1729495219215,0.3608,68774.0,68773.0,0.072727]
[1729495220010,0.3618,68774.0,68773.0,0.078727]
[1729495220516,0.3618,68774.0,68773.0,0.083727]
[1729495221509,0.3608,68782.0,68781.0,0.07272]
[1729495222407,0.3608,68782.0,68781.0,0.06472]
[1729495222612,0.3628,68782.0,68781.0,0.06472]
[1729495222812,0.3658,68782.0,68781.0,0.06472]
[1729495223816,0.3628,68782.0,68781.0,0.06672]
[1729495224613,0.3608,68782.0,68781.0,0.07072]
[1729495225915,0.3608,68782.0,68781.0,0.06872]
[1729495226114,0.3608,68782.0,68781.0,0.13282]